bitfinex/quotes_SOLUSD_20240726
["timestamp","ask_amount","ask_price","bid_price","bid_amount"]
[1721962409284,66.42401533,175.62,175.5,25.26]
[1721962409882,16.0039,175.6,175.5,25.26]
[1721962410275,65.0,175.59,175.47,25.26]
[1721962410497,16.0039,175.56,175.44,25.26]
[1721962410676,17.42833166,175.56,175.44,25.26]
[1721962410874,17.42833166,175.56,175.44,27.48707377]
[1721962411703,16.0039,175.56,175.44,27.48707377]
[1721962412000,16.0039,175.56,175.45,45.0]
[1721962413997,16.0039,175.56,175.47,25.26]
[1721962422191,1.42440426,175.55,175.44,27.48707377]
[1721962422374,1.42457252,175.54,175.44,27.48707377]
[1721962422576,16.0039,175.56,175.44,27.48707377]
[1721962423600,1.42453621,175.63,175.49,25.26]
[1721962423817,15.2875,175.61,175.55,25.26]
[1721962424169,15.2875,175.61,175.56,45.0]
[1721962425000,15.2875,175.61,175.57,20.0]
[1721962430121,6.6511,175.66,175.58,25.26]
[1721962430402,6.6511,175.66,175.63,25.26]
[1721962430980,6.5817,175.76,175.63,25.26]
[1721962431396,1.42313607,175.75,175.63,25.26]
[1721962432212,1.42313607,175.75,175.6,25.26]
[1721962432390,12.272,175.74,175.61,20.0]
[1721962432580,73.00509649,175.73,175.59,20.0]
[1721962432781,78.69579649,175.73,175.59,20.0]
[1721962433189,15.2192,175.72,175.59,20.0]
[1721962433386,46.42343678,175.71,175.59,20.0]
[1721962433712,8.00513678,175.7,175.59,20.0]
[1721962434286,46.9032,175.68,175.51,16.1478]
[1721962434584,66.42383372,175.67,175.51,48.26458682]
[1721962435696,66.42383372,175.67,175.52,45.0]
[1721962436306,66.42383372,175.67,175.53,20.0]
[1721962436919,21.913,175.66,175.53,20.0]
[1721962437094,6.1075,175.63,175.48,25.26]
[1721962437297,66.42411892,175.62,175.48,27.48269914]
[1721962437610,66.42411892,175.62,175.48,25.26]
[1721962438317,66.42411892,175.62,175.49,20.0]
[1721962440524,21.42411892,175.62,175.5,45.0]
[1721962440819,1.42411892,175.62,175.51,20.0]
[1721962441389,7.53152209,175.63,175.49,20.0]
[1721962441601,6.1075,175.63,175.51,25.26]
[1721962442623,7.53148922,175.63,175.51,25.26]
[1721962442820,6.1075,175.63,175.52,65.0]
[1721962446137,6.1075,175.63,175.54,25.26]
[1721962446421,6.1075,175.63,175.55,65.0]
[1721962448610,6.1075,175.63,175.55,20.0]
[1721962449009,6.1075,175.63,175.51,20.0]
[1721962449208,6.1075,175.63,175.52,45.0]
[1721962449410,6.1075,175.63,175.53,20.0]
[1721962451416,6.1075,175.63,175.54,45.0]
[1721962451619,6.1075,175.63,175.55,20.0]
[1721962451923,6.1075,175.63,175.56,45.0]
[1721962452103,6.1075,175.63,175.57,20.0]
[1721962452722,6.1075,175.63,175.58,45.0]
[1721962455120,6.6331,175.67,175.58,45.0]
[1721962455325,6.6331,175.67,175.59,20.0]
[1721962455633,6.6331,175.67,175.6,45.0]
[1721962459410,6.6331,175.67,175.59,45.26]
[1721962461327,6.6331,175.67,175.6,45.0]
[1721962464322,6.6331,175.67,175.61,20.0]
[1721962465124,6.6331,175.67,175.62,45.0]
[1721962465336,6.6331,175.67,175.62,70.26]
[1721962465637,6.6331,175.67,175.63,20.0]
[1721962466341,6.0333,175.72,175.65,25.26]
[1721962466526,7.90214473,175.8,175.63,16.5983]
[1721962466527,6.0333,175.76,175.69,25.26]
[1721962466853,6.0333,175.76,175.7,65.0]
[1721962467014,6.0333,175.76,175.71,25.26]
[1721962467337,6.8646573,175.81,175.72,65.0]
[1721962467546,6.8646573,175.81,175.74,25.26]
[1721962467752,0.8313573,175.81,175.77,25.26]
[1721962468112,0.8313573,175.81,175.78,45.0]
[1721962468321,0.8313573,175.81,175.74,25.26]
[1721962468530,0.8313573,175.81,175.75,65.0]
[1721962469747,0.8313573,175.81,175.77,25.26]
[1721962469920,0.8313573,175.81,175.76,65.0]
[1721962471539,0.8313573,175.81,175.8,25.26]
[1721962471759,0.8313573,175.81,175.8,90.26]
[1721962472245,0.8313573,175.81,175.8,65.0]
[1721962472545,0.8313573,175.81,175.76,25.26]
[1721962472730,0.8313573,175.81,175.77,45.0]
[1721962473329,0.8313573,175.81,175.74,25.26]
[1721962473737,0.8313573,175.81,175.75,20.0]
[1721962474822,2.25336462,175.81,175.71,25.26]
[1721962475246,0.8313573,175.81,175.71,25.26]
[1721962476363,1.42216135,175.8,175.71,25.26]
[1721962476544,0.8313573,175.81,175.71,25.26]
[1721962477044,0.8313573,175.81,175.72,45.0]
[1721962477248,0.8313573,175.81,175.73,20.0]
[1721962480937,0.8313573,175.81,175.72,20.0]
[1721962481138,0.8313573,175.81,175.69,20.0]
[1721962481961,1.4223931,175.8,175.69,20.0]
[1721962482260,2.25374634,175.81,175.7,45.0]
[1721962482434,2.25374634,175.81,175.71,20.0]
[1721962482628,2.25374634,175.81,175.72,45.0]
[1721962482843,2.25374634,175.81,175.73,20.0]
[1721962483048,0.8313573,175.81,175.73,20.0]
[1721962483640,0.8313573,175.81,175.74,70.26]
[1721962483832,0.8313573,175.81,175.75,20.0]
[1721962484040,0.8313573,175.81,175.76,45.0]
[1721962484353,23.0789,175.98,175.78,45.26]
[1721962484541,24.50012194,175.98,175.85,25.26]
[1721962484744,24.50012194,175.98,175.86,65.0]
[1721962485339,23.0789,175.98,175.86,65.0]
[1721962485946,23.0789,175.98,175.86,72.87441012]
[1721962487560,23.0789,175.98,175.86,65.0]
[1721962487758,23.0789,175.98,175.87,7.87441012]
[1721962487958,23.0789,175.98,175.88,65.0]
[1721962488336,6.6364,175.98,175.88,65.0]
[1721962488659,6.6364,175.98,175.89,7.87441012]
[1721962488858,6.6364,175.98,175.9,65.0]
[1721962491645,8.05733931,175.98,175.85,7.87441012]
[1721962491949,8.05733931,175.98,175.86,20.0]
[1721962492364,6.6364,175.98,175.86,20.0]
[1721962493066,6.6364,175.98,175.87,45.0]
[1721962493279,6.6364,175.98,175.88,20.0]
[1721962493439,6.6364,175.98,175.89,45.0]
[1721962495437,8.05739705,175.98,175.89,45.0]
[1721962495641,6.6364,175.98,175.89,45.0]
[1721962495859,6.6364,175.98,175.89,53.11658751]
[1721962496650,6.6364,175.98,175.9,20.0]
[1721962496843,6.6364,175.98,175.91,45.0]
[1721962498868,8.05731887,175.98,175.91,45.0]
[1721962499067,6.6364,175.98,175.91,45.0]
[1721962499250,1.42108111,175.97,175.82,6.1761]
[1721962499453,1.42108111,175.97,175.84,2.27258781]
[1721962499651,1.42108111,175.97,175.83,6.6364]
[1721962499852,8.05764189,175.98,175.83,6.6364]
[1721962500244,6.6364,175.98,175.84,8.11658751]
[1721962500448,6.6364,175.98,175.84,45.03817942]
[1721962500654,6.6364,175.98,175.85,45.0]
[1721962500875,6.6364,175.98,175.86,20.0]
[1721962501048,6.6364,175.98,175.87,45.0]
[1721962501249,6.6364,175.98,175.88,20.0]
[1721962501658,6.6364,175.98,175.89,45.0]
[1721962501861,6.6364,175.98,175.9,20.0]
[1721962502075,8.0574548,175.98,175.9,20.0]
[1721962502278,6.6364,175.98,175.9,20.0]
[1721962502970,8.0574615,175.98,175.9,20.0]
[1721962503178,6.6364,175.98,175.85,20.0]
[1721962503758,15.0197,175.97,175.81,18.60135308]
[1721962503952,1.42126283,175.96,175.81,18.60135308]
[1721962504154,15.0197,175.97,175.84,28.29]
[1721962504358,15.0197,175.97,175.85,6.81263133]
[1721962505081,15.0197,175.97,175.86,65.0]
[1721962505258,15.0197,175.97,175.86,45.0]
[1721962505579,1.42106001,175.96,175.85,45.0]
[1721962506284,1.42118882,175.95,175.76,16.5496]
[1721962506787,6.0679,175.96,175.79,20.0]
[1721962506952,6.0679,175.96,175.82,34.9536]
[1721962507158,6.0679,175.96,175.83,20.0]
[1721962507381,6.0679,175.96,175.82,34.9536]
[1721962507806,6.0679,175.96,175.84,20.0]
[1721962508119,6.0679,175.96,175.85,65.0]
[1721962508292,6.0679,175.96,175.86,65.0]
[1721962508618,1.42105022,175.95,175.83,70.16]
[1721962509024,1.42134631,175.94,175.83,70.16]
[1721962509506,1.42134631,175.94,175.75,35.0197]
[1721962509682,28.2183,175.93,175.78,25.16]
[1721962509877,1.4216348,175.92,175.78,25.16]
[1721962510083,21.4216348,175.92,175.78,25.16]
[1721962510405,6.2114,175.91,175.78,25.16]
[1721962511083,6.2114,175.91,175.81,25.16]
[1721962511718,6.2114,175.91,175.82,65.0]
[1721962513818,6.2114,175.91,175.84,25.16]
[1721962514190,6.2114,175.91,175.85,45.0]
[1721962514389,1.42148837,175.9,175.77,25.16]
[1721962514703,6.2114,175.91,175.77,25.16]
[1721962515997,6.2114,175.91,175.78,45.0]
[1721962516397,6.2114,175.91,175.79,20.0]
[1721962516595,6.2114,175.91,175.8,45.0]
[1721962516799,6.2114,175.91,175.81,20.0]
[1721962517008,6.2114,175.91,175.82,45.0]
[1721962519099,6.2114,175.91,175.83,20.0]
[1721962519429,6.2114,175.91,175.84,45.0]
[1721962524233,6.2513,175.96,175.86,25.16]
[1721962524393,6.2513,175.96,175.89,25.16]
[1721962524593,6.2513,175.96,175.9,65.0]
[1721962525706,0.8313573,175.99,175.9,65.0]
[1721962528439,0.8313573,175.99,175.89,25.16]
[1721962528640,0.8313573,175.99,175.9,20.0]
[1721962528804,0.8313573,175.99,175.87,20.0]
[1721962529422,0.8313573,175.99,175.89,25.16]
[1721962529639,0.8313573,175.99,175.9,65.0]
[1721962536729,1.42068805,175.98,175.85,25.16]
[1721962537027,0.8313573,175.99,175.85,25.16]
[1721962537208,0.8313573,175.99,175.85,27.40344261]
[1721962538130,0.8313573,175.99,175.86,20.0]
[1721962538321,0.8313573,175.99,175.87,45.0]
[1721962538514,0.8313573,175.99,175.91,25.16]
[1721962538715,0.8313573,175.99,175.92,45.0]
[1721962539612,0.8313573,175.99,175.93,20.0]
[1721962539808,0.8313573,175.99,175.94,45.0]
[1721962540733,0.8313573,175.99,175.91,25.16]
[1721962541810,0.8313573,175.99,175.91,27.34959287]
[1721962542035,0.8313573,175.99,175.92,45.0]
[1721962545324,0.8313573,175.99,175.9,2.17935697]
[1721962545529,0.8313573,175.99,175.88,31.6604]
[1721962545530,0.8313573,175.99,175.89,20.0]
[1721962546538,2.25218312,175.99,175.88,27.42814229]
[1721962546735,22.8302,175.97,175.85,25.16]
[1721962547237,22.8302,175.97,175.85,27.40833804]
[1721962547921,22.8302,175.97,175.86,45.0]
[1721962549821,22.8302,175.97,175.87,20.0]
[1721962550017,22.8302,175.97,175.88,45.0]
[1721962553132,22.8302,175.97,175.88,70.16]
[1721962558134,22.8302,175.97,175.88,45.0]
[1721962559339,22.8302,175.97,175.85,2.24833804]
[1721962559553,22.0153,175.95,175.82,25.16]
[1721962560027,23.43670878,175.95,175.82,25.16]
[1721962560370,6.2668,175.94,175.81,2.17582174]
[1721962560534,6.2668,175.92,175.79,25.16]
[1721962560731,6.2668,175.92,175.79,27.35674096]
[1721962561148,6.2668,175.92,175.82,25.16]
[1721962561760,6.2668,175.92,175.83,45.0]
[1721962563367,1.42136512,175.98,175.89,25.16]
[1721962563368,21.8355,175.98,175.89,25.16]
[1721962563570,21.8355,175.98,175.9,45.0]
[1721962564955,21.8355,175.98,175.91,20.0]
[1721962565140,21.8355,175.98,175.92,45.0]
[1721962565333,21.8355,175.98,175.93,20.0]
[1721962565528,21.8355,175.98,175.94,45.0]
[1721962566434,6.4773,175.98,175.94,45.0]
[1721962566653,0.8313573,175.99,175.96,15.7514]
[1721962566854,0.8313573,175.99,175.98,25.16]
[1721962567061,0.8313573,175.99,175.98,90.16]
[1721962567865,0.8313573,175.99,175.98,65.0]
[1721962568747,6.5779,176.13,175.99,15.5478]
[1721962568936,6.5779,176.13,176.01,25.16]
[1721962569147,6.5779,176.13,176.02,20.0]
[1721962570338,6.5779,176.13,176.04,25.16]
[1721962570542,6.5779,176.13,176.05,20.0]
[1721962570973,6.5779,176.13,176.06,45.0]
[1721962571173,6.5779,176.13,176.07,20.0]
[1721962571336,6.5779,176.13,176.08,45.0]
[1721962571965,6.5779,176.13,176.07,20.0]
[1721962572275,6.5779,176.13,176.02,20.0]
[1721962575070,6.5779,176.13,176.0,2.1747568]
[1721962575269,6.5779,176.13,175.99,20.0]
[1721962576069,6.5779,176.13,176.01,25.16]
[1721962576369,6.5779,176.13,176.02,20.0]
[1721962576751,6.5779,176.13,176.03,45.0]
[1721962576955,6.5779,176.13,176.04,20.0]
[1721962577153,6.5779,176.13,176.05,45.0]
[1721962577359,6.5779,176.13,176.06,20.0]
[1721962577550,6.5779,176.13,176.07,45.0]
[1721962577874,6.5779,176.13,176.08,20.0]
[1721962578075,6.5779,176.13,176.09,45.0]
[1721962578375,6.5779,176.13,176.1,20.0]
[1721962578676,6.5779,176.13,176.11,45.0]
[1721962579044,6.5779,176.13,176.08,20.0]
[1721962579246,6.5779,176.13,176.09,45.0]
[1721962579554,6.5779,176.13,176.1,20.0]
[1721962580353,6.5779,176.13,176.05,20.0]
[1721962581595,0.8313573,176.16,176.07,25.16]
[1721962581885,0.8313573,176.16,176.08,65.0]
[1721962585372,0.8313573,176.16,176.1,25.16]
[1721962585666,0.8313573,176.16,176.14,20.0]
[1721962585854,0.8313573,176.16,176.15,45.0]
[1721962586054,0.8313573,176.16,176.15,65.0]
[1721962586257,3.66900644,176.22,176.16,20.0]
[1721962586567,3.66900644,176.22,176.19,25.16]
[1721962586755,3.66900644,176.22,176.2,20.0]
[1721962587070,3.66900644,176.22,176.2,65.0]
[1721962588475,3.66900644,176.22,176.2,20.0]
[1721962588771,3.66900644,176.22,176.17,20.0]
[1721962589148,3.66900644,176.22,176.14,22.28252004]
[1721962589345,3.66900644,176.22,176.16,45.16]
[1721962589547,3.66900644,176.22,176.17,20.0]
[1721962590253,3.66900644,176.22,176.13,27.43067788]
[1721962590254,3.66900644,176.22,176.13,25.16]
[1721962592370,3.66900644,176.22,176.14,45.0]
[1721962592555,6.0347,176.21,176.11,2.24121182]
[1721962592759,15.0962,176.2,176.08,20.0]
[1721962593471,15.0962,176.2,176.08,22.18974861]
[1721962593780,15.0962,176.2,176.1,45.16]
[1721962593947,15.0962,176.2,176.11,20.0]
[1721962594160,15.0962,176.2,176.12,45.0]
[1721962594360,15.0962,176.2,176.13,20.0]
[1721962594560,15.0962,176.2,176.14,45.0]
[1721962594867,15.0962,176.2,176.15,20.0]
[1721962595065,15.0962,176.2,176.16,45.0]
[1721962595269,15.0962,176.2,176.17,20.0]
[1721962595488,15.0962,176.2,176.18,45.0]
[1721962597188,6.0347,176.21,176.18,45.0]
[1721962598584,6.0347,176.21,176.08,20.0]
[1721962598892,6.0347,176.21,176.03,22.5923206]
[1721962598893,25.16,176.19,176.04,20.0]
[1721962599190,6.0107,176.18,176.04,20.0]
[1721962599687,1.41942313,176.17,176.01,2.27810071]
[1721962599864,1.41942313,176.17,176.0,45.16]
[1721962599865,15.2864,176.15,176.0,25.16]
[1721962600064,15.2864,176.15,176.01,20.0]
[1721962600382,6.1184,176.14,176.01,20.0]
[1721962600571,5.6184,176.14,176.0,25.16]
[1721962600774,1.41961914,176.13,176.0,25.16]
[1721962601293,5.6184,176.14,175.98,7.1106206]
[1721962601501,5.6184,176.14,175.97,25.16]
[1721962601502,1.41979535,176.13,175.97,25.16]
[1721962601699,1.41979535,176.13,175.97,47.35293164]
[1721962602004,1.41979535,176.13,175.97,27.35293164]
[1721962602186,1.41979535,176.13,175.97,25.16]
[1721962602384,5.6184,176.14,176.03,25.16]
[1721962602689,5.6184,176.14,176.06,25.16]
[1721962603107,5.6184,176.14,176.03,25.16]
[1721962603409,5.6184,176.14,176.04,45.0]
[1721962603700,5.6184,176.14,176.05,20.0]
[1721962603902,5.6184,176.14,176.06,45.0]
[1721962604087,21.1771,176.21,176.07,20.0]
[1721962604288,21.1771,176.21,176.08,45.0]
[1721962604474,22.59611237,176.21,176.09,20.0]
[1721962604675,21.1771,176.21,176.1,45.0]
[1721962604903,21.1771,176.21,176.11,20.0]
[1721962605103,22.59620119,176.21,176.12,45.0]
[1721962605415,1.4191691,176.2,176.12,45.0]
[1721962605574,7.0945691,176.2,176.11,20.0]
[1721962605771,1.4191691,176.2,176.12,45.0]
[1721962605971,21.1771,176.21,176.12,45.0]
[1721962606195,1.41927166,176.2,176.12,45.0]
[1721962606403,21.1771,176.21,176.12,45.0]
[1721962606600,21.1771,176.21,176.13,20.0]
[1721962606780,21.1771,176.21,176.14,45.0]
[1721962608495,1.41910287,176.2,176.04,28.23]
[1721962608697,1.41910287,176.2,176.02,2.24210362]
[1721962608698,7.09450287,176.2,176.05,65.0]
[1721962608879,1.41910287,176.2,176.05,65.0]
[1721962609204,21.1771,176.21,176.2,452.12709713]
[1721962609205,6.0533,176.21,176.2,452.12709713]
[1721962612316,3.66900644,176.22,176.2,452.12709713]
[1721962612698,3.66900644,176.22,176.21,45.0]
[1721962613483,3.66900644,176.22,176.2,452.12709713]
[1721962616302,12.1832,176.21,176.2,452.12709713]
[1721962616503,12.1832,176.21,176.2,445.46049713]
[1721962617337,12.1832,176.21,176.2,438.79389713]
[1721962617906,5.675,176.21,176.2,424.32718343]
[1721962618105,70.675,176.21,176.2,423.74779757]
[1721962618813,70.675,176.21,176.2,414.52979757]
[1721962619136,70.675,176.21,176.2,399.8305832]
[1721962619436,25.675,176.21,176.2,399.8305832]
[1721962619626,70.675,176.21,176.2,370.1305832]
[1721962619832,25.675,176.21,176.2,370.1305832]
[1721962620006,70.675,176.21,176.2,370.1305832]
[1721962620507,25.675,176.21,176.2,370.1305832]
[1721962621517,25.675,176.21,176.2,219.4905832]
[1721962621926,70.175,176.21,176.2,210.3015832]
[1721962622421,70.175,176.21,176.2,208.5955832]
[1721962622624,70.175,176.21,176.2,206.8895832]
[1721962622809,70.175,176.21,176.2,168.9413832]
[1721962624348,70.175,176.21,176.2,29.4233832]
[1721962624721,70.175,176.21,176.2,21.12924848]
[1721962625118,70.175,176.21,176.2,11.45641376]
[1721962625337,5.6779,176.12,176.02,1.13564155]
[1721962625528,5.6779,176.12,176.02,20.0]
[1721962625723,5.6776,176.13,176.02,25.681]
[1721962625939,33.9073,176.14,176.03,5.6807]
[1721962626628,28.23,176.14,176.02,20.0]
[1721962626824,28.23,176.14,176.04,5.6804]
[1721962627041,33.9073,176.14,176.03,5.6808]
[1721962627437,28.23,176.14,176.04,5.6805]
[1721962627642,28.23,176.14,176.02,20.0]
[1721962628321,33.9073,176.14,176.03,5.6805]
[1721962628629,5.6776,176.13,176.03,5.6805]
[1721962628819,5.6783,176.11,176.02,20.0]
[1721962629025,28.23,176.14,176.02,20.0]
[1721962629630,28.23,176.14,176.03,5.6807]
[1721962630230,25.13,176.12,176.03,5.6807]
[1721962630435,25.13,176.12,176.04,5.6804]
[1721962630635,25.13,176.12,176.02,20.0]
[1721962630950,25.13,176.15,176.03,1.13601244]
[1721962631131,256.6,176.21,176.03,7.33121244]
[1721962631447,25.13,176.19,176.04,65.0]
[1721962631635,25.13,176.19,176.11,5.6781]
[1721962632043,25.13,176.19,176.12,5.6778]
[1721962632248,9.34380644,176.22,176.05,1.13553537]
[1721962632550,3.66900644,176.22,176.06,15.5722]
[1721962632847,3.66900644,176.22,176.15,5.6769]
[1721962633054,3.66900644,176.22,176.14,5.6772]
[1721962633353,3.66900644,176.22,176.15,5.6769]
[1721962634219,3.66900644,176.22,176.16,5.6766]
[1721962634764,3.66900644,176.22,176.17,5.6763]
[1721962635753,3.66900644,176.22,176.16,5.6766]
[1721962635955,3.66900644,176.22,176.17,1.13504018]
[1721962636153,3.66900644,176.22,176.15,15.5722]
[1721962636340,3.66900644,176.22,176.21,5.675]
[1721962636741,3.66900644,176.22,176.2,5.6753]
[1721962636931,3.66900644,176.22,176.21,5.675]
[1721962637258,3.66900644,176.22,176.19,5.6756]
[1721962637639,3.66900644,176.22,176.2,5.6753]
[1721962637842,3.66900644,176.22,176.21,5.675]
[1721962638350,3.66900644,176.22,176.19,5.6754]
[1721962638961,3.66900644,176.22,176.16,66.1349095]
[1721962639258,3.66900644,176.22,176.19,5.6756]
[1721962639446,3.66900644,176.22,176.2,5.6752]
[1721962639645,3.66900644,176.22,176.18,5.6759]
[1721962639954,3.66900644,176.22,176.19,20.0]
[1721962640145,3.66900644,176.22,176.12,6.1952]
[1721962640653,9.34370644,176.22,176.12,6.1952]
[1721962640838,3.66900644,176.22,176.12,11.873]
[1721962641029,3.66900644,176.22,176.12,6.1952]
[1721962641232,3.66900644,176.22,176.13,5.6775]
[1721962642053,3.66900644,176.22,176.09,15.5722]
[1721962642662,5.675,176.21,176.1,5.6785]
[1721962642864,5.675,176.21,176.09,21.251]
[1721962643159,3.66900644,176.22,176.09,16.70772488]
[1721962643461,3.66900644,176.22,176.13,5.6775]
[1721962643659,3.66900644,176.22,176.14,20.0]
[1721962643964,3.66900644,176.22,176.18,5.6759]
[1721962644141,3.66900644,176.22,176.14,20.0]
[1721962644455,3.66900644,176.22,176.1,20.0]
[1721962644657,3.66900644,176.22,176.11,45.0]
[1721962644833,5.6753,176.2,176.09,21.251]
[1721962645240,9.34380644,176.22,176.09,15.5722]
[1721962645462,3.66900644,176.22,176.15,5.6768]
[1721962645660,9.34370644,176.22,176.09,15.5722]
[1721962646147,3.66900644,176.22,176.09,15.5722]
[1721962646330,3.66900644,176.22,176.1,20.0]
[1721962646534,3.66900644,176.22,176.1,21.13539882]
[1721962646848,3.66900644,176.22,176.14,5.6772]
[1721962647155,3.66900644,176.22,176.18,5.6758]
[1721962647363,3.66900644,176.22,176.11,1.13524678]
[1721962647539,3.66900644,176.22,176.11,46.13524678]
[1721962647748,3.66900644,176.22,176.12,20.0]
[1721962648059,3.66900644,176.22,176.13,46.13500474]
[1721962648366,3.66900644,176.22,176.14,20.0]
[1721962648554,3.66900644,176.22,176.15,45.0]
[1721962648736,3.66900644,176.22,176.16,20.0]
[1721962649049,3.66900644,176.22,176.17,5.6762]
[1721962649250,3.66900644,176.22,176.18,20.0]
[1721962649851,3.66900644,176.22,176.18,25.6759]
[1721962650244,3.66900644,176.22,176.18,20.0]
[1721962650431,3.66900644,176.22,176.19,5.6756]
[1721962650638,3.66900644,176.22,176.14,20.0]
[1721962650833,3.66900644,176.22,176.17,5.6763]
[1721962651258,3.66900644,176.22,176.18,20.0]
[1721962651858,3.66900644,176.22,176.15,45.0]
[1721962652065,3.66900644,176.22,176.16,20.0]
[1721962652360,3.66900644,176.22,176.14,5.677]
[1721962652558,3.66900644,176.22,176.14,5.6772]
[1721962652871,3.66900644,176.22,176.09,16.70740567]
[1721962652872,3.66900644,176.22,176.13,5.6775]
[1721962653068,3.66900644,176.22,176.09,16.7075561]
[1721962653271,3.66900644,176.22,176.09,15.5722]
[1721962653634,3.66900644,176.22,176.13,5.6773]
[1721962653861,3.66900644,176.22,176.12,5.6778]
[1721962654643,3.66900644,176.22,176.09,15.5722]
[1721962654862,28.75900644,176.22,176.09,15.5722]
[1721962655067,5.6753,176.21,176.1,5.6785]
[1721962655269,5.6753,176.2,176.09,21.251]
[1721962656267,28.75900644,176.22,176.11,5.6782]
[1721962656268,3.66900644,176.22,176.11,5.6782]
[1721962656468,3.66900644,176.22,176.1,20.0]
[1721962656762,5.676,176.18,176.07,5.6795]
[1721962657064,5.6763,176.17,176.06,5.6798]
[1721962657444,46.09630644,176.22,176.05,15.889]
[1721962657761,65.0,176.21,176.05,15.889]
[1721962657970,5.676,176.18,176.07,5.6794]
[1721962658776,5.676,176.18,176.08,5.6792]
[1721962659166,65.0,176.21,176.05,15.889]
[1721962659375,5.6766,176.16,176.06,20.0]
[1721962659588,14.189,176.2,176.06,20.0]
[1721962659747,5.6765,176.17,176.06,25.6798]
[1721962659952,45.0,176.19,176.06,20.0]
[1721962660256,5.6766,176.16,176.06,20.0]
[1721962660456,5.677,176.15,176.05,15.889]
[1721962660971,5.6773,176.14,176.04,6.2869]
[1721962661268,5.6773,176.14,176.03,5.6808]
[1721962661456,14.191,176.17,176.01,15.889]
[1721962661650,5.6779,176.13,176.02,5.6811]
[1721962662855,5.6779,176.13,176.03,20.0]
[1721962663055,28.24,176.18,176.03,20.0]
[1721962663251,5.6773,176.14,176.04,5.6803]
[1721962663464,5.6773,176.14,176.02,20.0]
[1721962664377,5.6773,176.14,176.03,5.6808]
[1721962665280,5.6773,176.14,176.04,5.6805]
[1721962665677,5.6773,176.14,176.03,5.6807]
[1721962666276,5.6776,176.13,176.02,25.6811]
[1721962666677,65.0,176.17,176.02,20.0]
[1721962666981,65.0,176.17,176.04,5.6803]
[1721962667481,5.6772,176.15,176.04,5.6803]
[1721962667778,20.0,176.14,176.04,5.6803]
[1721962668271,20.0,176.14,176.03,45.0]
[1721962668467,20.12245614,176.19,176.03,45.0]
[1721962668677,5.6766,176.16,176.05,5.6801]
[1721962668980,5.6766,176.16,176.04,20.0]
[1721962668981,5.6771,176.15,176.04,20.0]
[1721962669178,45.0,176.18,176.04,20.0]
[1721962669562,5.6772,176.15,176.04,25.6802]
[1721962669760,5.6772,176.15,176.05,45.0]
[1721962669963,5.6773,176.14,176.04,20.0]
[1721962670170,5.677,176.15,176.04,25.6804]
[1721962670371,5.6766,176.16,176.05,5.6801]
[1721962670571,3.66900644,176.22,176.07,22.829]
[1721962670775,3.66900644,176.22,176.08,66.13556432]
[1721962670971,3.66900644,176.22,176.12,5.6778]
[1721962671165,3.66900644,176.22,176.08,65.0]
[1721962671371,5.6757,176.19,176.09,5.6788]
[1721962671677,3.66900644,176.22,176.1,20.0]
[1721962671981,31.90900644,176.22,176.08,20.0]
[1721962672183,31.90900644,176.22,176.03,22.5616]
[1721962672184,14.1882,176.21,176.03,22.5616]
[1721962672386,5.6769,176.16,176.04,5.6804]